fUSD/lending_fUSD_20240517
["ID","MTS","AMOUNT","RATE_DAILY","PERIOD"]
[327323445,1715986258646,-718.0,0.00012999,2]
[327323446,1715986258655,-500.0,0.00012999,2]
[327323447,1715986258663,-400.10424093,0.00012999,2]
[327323448,1715986258679,-99.89575907,0.00012999,2]
[327323449,1715986258687,-500.0,0.00012999,2]
[327323450,1715986258696,-509.85,0.00012999,2]
[327323451,1715986258706,-500.0,0.00012999,2]
[327323452,1715986258715,-25.38416145,0.00012999,2]
[327323453,1715986258726,-474.61583855,0.00012999,2]
[327323454,1715986258736,-500.0,0.00012999,2]
[327323455,1715986258745,-500.0,0.00012999,2]
[327323456,1715986258754,-500.0,0.00012999,2]
[327323457,1715986258763,-500.0,0.00012999,2]
[327323458,1715986258773,-500.0,0.00012999,2]
[327323459,1715986258782,-500.0,0.00012999,2]
[327323460,1715986258792,-500.0,0.00012999,2]
[327323461,1715986258801,-500.0,0.00012999,2]
[327323462,1715986258810,-500.0,0.00012999,2]
[327323463,1715986258819,-500.0,0.00012999,2]
[327323464,1715986258828,-500.0,0.00012999,2]
[327323465,1715986258837,-500.0,0.00012999,2]
[327323466,1715986258847,-500.0,0.00012999,2]
[327323467,1715986258856,-500.0,0.00012999,2]
[327323468,1715986258865,-500.0,0.00012999,2]
[327323469,1715986258878,-500.0,0.00012999,2]
[327323470,1715986258887,-344.49243996,0.00012999,2]
[327323471,1715986258896,-500.0,0.00012999,2]
[327323472,1715986258905,-500.0,0.00012999,2]
[327323473,1715986258914,-500.0,0.00012999,2]
[327323474,1715986258923,-500.0,0.00012999,2]
[327323475,1715986258933,-500.0,0.00012999,2]
[327323476,1715986258943,-500.0,0.00012999,2]
[327323477,1715986258952,-500.0,0.00012999,2]
[327323478,1715986258962,-180.34,0.00012999,2]
[327323479,1715986258971,-500.0,0.00012999,2]
[327323480,1715986258980,-500.0,0.00012999,2]
[327323481,1715986258990,-500.0,0.00012999,2]
[327323482,1715986258999,-500.0,0.00012999,2]
[327323483,1715986259008,-500.0,0.00012999,2]
[327323484,1715986259017,-500.0,0.00012999,2]
[327323485,1715986259027,-500.0,0.00012999,2]
[327323486,1715986259036,-500.0,0.00012999,2]
[327323487,1715986259046,-500.0,0.00012999,2]
[327323488,1715986259055,-422.72,0.00012999,2]
[327323489,1715986259064,-367.70545536,0.00012999,2]
[327323490,1715986259074,-500.0,0.00012999,2]
[327323491,1715986259083,-500.0,0.00012999,2]
[327323492,1715986259093,-500.0,0.00012999,2]
[327323493,1715986259102,-500.0,0.00012999,2]
[327323494,1715986259112,-250.72613901,0.00012999,2]
[327323495,1715986259122,-500.0,0.00012999,2]
[327323496,1715986259131,-417.76,0.00012999,2]
[327323497,1715986259140,-500.0,0.00012999,2]
[327323498,1715986259149,-500.0,0.00012999,2]
[327323499,1715986259158,-636.36,0.00012999,2]
[327323500,1715986259170,-500.0,0.00012999,2]
[327323501,1715986259180,-500.0,0.00012999,2]
[327323502,1715986259189,-500.0,0.00012999,2]
[327323503,1715986259198,-199.87215835,0.00012999,2]
[327323504,1715986259210,-500.0,0.00012999,2]
[327323505,1715986259220,-500.0,0.00012999,2]
[327323506,1715986259230,-500.0,0.00012999,2]
[327323507,1715986259239,-500.0,0.00012999,2]
[327323508,1715986259251,-500.0,0.00012999,2]
[327323509,1715986259261,-500.0,0.00012999,2]
[327323510,1715986259270,-500.0,0.00012999,2]
[327323511,1715986259280,-500.0,0.00012999,2]
[327323512,1715986259289,-91704.9276688,0.00013,2]
[327323513,1715986259301,-784.50318454,0.00013,2]
[327323514,1715986259312,-162923.74588913,0.00013,2]
[327323515,1715986259323,-574.27661937,0.00013,2]
[327323525,1715987344801,-535.58310182,8.765e-05,2]
[327323526,1715987344826,-1686.04842948,8.766e-05,2]
[327323573,1715987357944,-221.6315313,8.765e-05,2]
[327323574,1715987358776,-221.6315313,8.765e-05,2]
[327323575,1715987359512,-221.6315313,8.765e-05,2]
[327323576,1715987360165,-221.6315313,8.765e-05,2]
[327323577,1715987364421,-221.6315313,8.765e-05,2]
[327323578,1715987364962,-221.6315313,8.765e-05,2]
[327323579,1715987365523,-221.6315313,8.765e-05,2]
[327323588,1715987431583,-2875.05213141,8.764e-05,2]
[327323589,1715987431596,-362.06082073,8.765e-05,2]
[327323590,1715987431610,-150.0,8.765e-05,2]
[327323591,1715987431619,-150.0,8.765e-05,2]
[327323592,1715987431629,-19724.89885095,8.765e-05,2]
[327323593,1715987431639,-5561.88042638,8.766e-05,2]
[327323594,1715987431648,-158.33,8.769e-05,2]
[327323595,1715987431657,-2221.6315313,0.00010682,2]
[327323596,1715987431668,-635.18,0.00010683,2]
[327323597,1715987431681,-3779.57,0.00010688,2]
[327323598,1715987431691,-250.0,0.00010698,2]
[327323599,1715987431700,-165.82,0.00010703,2]
[327323600,1715987431710,-222.67,0.0001071,2]
[327323601,1715987431719,-254.03,0.00010729,2]
[327323602,1715987431728,-803.4540425,0.00011073,2]
[327323603,1715987431738,-452.82,0.00011074,2]
[327323604,1715987431747,-2564.01,0.00011109,2]
[327323605,1715987431756,-201.47,0.00011207,2]
[327323606,1715987431765,-644.92,0.00011224,2]
[327323607,1715987431775,-644.92,0.00011255,2]
[327323608,1715987431784,-165.55,0.00011266,2]
[327323609,1715987431793,-644.92,0.00011286,2]
[327323610,1715987431802,-644.92,0.00011316,2]
[327323611,1715987431811,-644.92,0.00011347,2]
[327323612,1715987431820,-644.92,0.00011378,2]
[327323613,1715987431830,-644.92,0.00011409,2]
[327323614,1715987431839,-644.92,0.0001144,2]
[327323615,1715987431848,-644.92,0.0001147,2]
[327323616,1715987431857,-644.92,0.00011501,2]
[327323617,1715987431867,-644.92,0.00011532,2]
[327323618,1715987431876,-644.92,0.00011563,2]
[327323619,1715987431884,-644.92,0.00011594,2]
[327323620,1715987431893,-644.92,0.00011624,2]
[327323621,1715987431903,-644.92,0.00011655,2]
[327323622,1715987431912,-644.92,0.00011686,2]
[327323623,1715987431921,-644.92,0.00011717,2]
[327323624,1715987431930,-644.92,0.00011748,2]
[327323625,1715987431939,-644.92,0.00011778,2]
[327323626,1715987431948,-644.92,0.00011809,2]
[327323627,1715987431957,-734.14,0.00011823,2]
[327323628,1715987431966,-5000.0,0.00012,2]
[327323630,1715987431976,-410.10769959,0.00012032,2]
[327323632,1715987431985,-170.32,0.00012033,2]
[327323634,1715987431994,-222.67,0.00012048,2]
[327323636,1715987432003,-254.03,0.0001207,2]
[327323638,1715987432012,-256.8087,0.00012128,2]
[327323640,1715987432021,-1291.3552,0.00012128,2]
[327323642,1715987432030,-180.0,0.00012175,2]
[327323644,1715987432039,-9547.73835177,0.00012227,2]
[327323646,1715987432048,-494.0898,0.00012228,2]
[327323648,1715987432057,-10349.8897,0.00012228,2]
[327323650,1715987432067,-78549.8897,0.00012228,2]
[327323652,1715987432075,-2885.5228,0.00012228,2]
[327323653,1715987432085,-1226.47900254,0.00012228,2]
[327323656,1715987432095,-1226.47900248,0.00012303,2]
[327323657,1715987432250,-170.412667,0.00012326,2]
[327323658,1715987432259,-2359.70945069,0.00012326,2]
[327323659,1715987432269,-155.0,0.00012326,2]
[327323660,1715987432278,-298.31658624,0.00012326,2]
[327323661,1715987432287,-207.06147927,0.00012326,2]
[327323663,1715987432296,-155.51999198,0.00012326,2]
[327323664,1715987432305,-2403.86883121,0.00012326,2]
[327323665,1715987432315,-355.91068806,0.00012326,2]
[327323666,1715987432326,-155.0,0.00012326,2]
[327323667,1715987432335,-3602.13327045,0.00012326,2]
[327323668,1715987432345,-687.96672505,0.00012326,2]
[327323669,1715987432354,-534.28456702,0.00012326,2]
[327323670,1715987432364,-227.49697387,0.00012327,2]
[327323671,1715987432373,-317.50955943,0.00012327,2]
[327323672,1715987432382,-782.5278252,0.00012327,2]
[327323673,1715987432392,-1212.93169381,0.00012327,2]
[327323674,1715987432401,-374.46137945,0.00012328,2]
[327323675,1715987432410,-498.91025329,0.00012328,2]
[327323676,1715987432420,-504.92816608,0.00012328,2]
[327323677,1715987432429,-501.09851947,0.00012328,2]
[327323678,1715987432438,-501.71318679,0.00012328,2]
[327323679,1715987432447,-500.0,0.00012328,2]
[327323680,1715987432456,-500.0,0.00012328,2]
[327323681,1715987432465,-500.0,0.00012328,2]
[327323682,1715987432474,-500.0,0.00012328,2]
[327323683,1715987432483,-331.18,0.00012328,2]
[327323684,1715987432493,-500.0,0.00012328,2]
[327323685,1715987432502,-500.0,0.00012328,2]
[327323686,1715987432511,-500.0,0.00012328,2]
[327323687,1715987432520,-500.0,0.00012328,2]
[327323688,1715987432529,-500.0,0.00012328,2]
[327323689,1715987432538,-155.0,0.00012328,2]
[327323690,1715987432548,-500.0,0.00012328,2]
[327323691,1715987432559,-500.0,0.00012328,2]
[327323692,1715987432570,-500.0,0.00012328,2]
[327323693,1715987432581,-498.9544624,0.00012328,2]
[327323694,1715987432592,-500.0,0.00012328,2]
[327323695,1715987432606,-500.0,0.00012328,2]
[327323696,1715987432616,-505.47056043,0.00012328,2]
[327323697,1715987432627,-545.9,0.00012328,2]
[327323698,1715987432638,-500.0,0.00012328,2]
[327323699,1715987432647,-561.22181075,0.00012328,2]
[327323700,1715987432658,-500.0,0.00012328,2]
[327323701,1715987432668,-500.0,0.00012328,2]
[327323702,1715987432678,-500.0,0.00012328,2]
[327323703,1715987432688,-501.5509075,0.00012328,2]
[327323704,1715987432697,-501.19999316,0.00012328,2]
[327323705,1715987432707,-500.0,0.00012328,2]
[327323706,1715987432717,-194.30410358,0.00012328,2]
[327323707,1715987432726,-500.0,0.00012328,2]
[327323708,1715987432746,-500.0,0.00012328,2]
[327323709,1715987432756,-500.0,0.00012328,2]
[327323710,1715987432767,-500.0,0.00012328,2]
[327323711,1715987432777,-500.0,0.00012328,2]
[327323712,1715987432787,-506.40447097,0.00012328,2]
[327323713,1715987432797,-562.85,0.00012328,2]
[327323714,1715987432807,-500.0,0.00012328,2]
[327323715,1715987432817,-500.0,0.00012328,2]
[327323716,1715987432827,-216.37,0.00012328,2]
[327323717,1715987432837,-625.31,0.00012328,2]
[327323718,1715987432846,-500.0,0.00012328,2]
[327323719,1715987432856,-500.0,0.00012328,2]
[327323720,1715987432866,-500.0,0.00012328,2]
[327323721,1715987432876,-500.0,0.00012328,2]
[327323722,1715987432886,-500.0,0.00012328,2]
[327323723,1715987432896,-508.18,0.00012328,2]
[327323724,1715987432907,-500.0,0.00012328,2]
[327323725,1715987432919,-500.0,0.00012328,2]
[327323726,1715987432928,-500.0,0.00012328,2]
[327323727,1715987432938,-487.63118855,0.00012328,2]
[327323728,1715987432949,-537.3,0.00012328,2]
[327323729,1715987432959,-500.0,0.00012328,2]
[327323730,1715987432968,-500.0,0.00012328,2]
[327323731,1715987432978,-500.0,0.00012328,2]
[327323732,1715987432988,-500.0,0.00012328,2]
[327323733,1715987432998,-500.0,0.00012328,2]
[327323734,1715987433008,-500.0,0.00012328,2]
[327323735,1715987433018,-500.0,0.00012328,2]
[327323736,1715987433027,-500.0,0.00012328,2]
[327323737,1715987433037,-500.0,0.00012328,2]
[327323738,1715987433047,-500.0,0.00012328,2]
[327323739,1715987433056,-500.0,0.00012328,2]
[327323740,1715987433066,-500.0,0.00012328,2]
[327323741,1715987433075,-500.0,0.00012328,2]
[327323742,1715987433084,-616.67365939,0.00012328,2]
[327323743,1715987433094,-500.0,0.00012328,2]
[327323744,1715987433104,-500.0,0.00012328,2]
[327323745,1715987433113,-500.0,0.00012328,2]
[327323746,1715987433124,-500.0,0.00012328,2]
[327323747,1715987433134,-500.0,0.00012328,2]
[327323748,1715987433143,-619.87,0.00012328,2]
[327323749,1715987433153,-606.44191861,0.00012328,2]
[327323750,1715987433163,-500.0,0.00012328,2]
[327323751,1715987433173,-500.0,0.00012328,2]
[327323752,1715987433182,-500.0,0.00012328,2]
[327323753,1715987433191,-500.0,0.00012328,2]
[327323754,1715987433203,-600.58,0.00012328,2]
[327323755,1715987433214,-500.0,0.00012328,2]
[327323756,1715987433223,-500.0,0.00012328,2]
[327323757,1715987433233,-500.0,0.00012328,2]
[327323758,1715987433243,-500.0,0.00012328,2]
[327323759,1715987433252,-500.0,0.00012328,2]
[327323760,1715987433262,-500.0,0.00012328,2]
[327323761,1715987433271,-190.62,0.00012328,2]
[327323762,1715987433281,-500.0,0.00012328,2]
[327323763,1715987433291,-170.94906967,0.00012328,2]
[327323764,1715987433300,-500.0,0.00012328,2]
[327323765,1715987433310,-500.0,0.00012328,2]
[327323766,1715987433319,-500.0,0.00012328,2]
[327323767,1715987433330,-500.0,0.00012328,2]
[327323768,1715987433340,-500.0,0.00012328,2]
[327323769,1715987433353,-500.0,0.00012328,2]
[327323770,1715987433363,-500.0,0.00012328,2]
[327323771,1715987433373,-477.18,0.00012328,2]
[327323772,1715987433383,-522.48839804,0.00012328,2]
[327323773,1715987433392,-500.0,0.00012328,2]
[327323774,1715987433402,-500.0,0.00012328,2]
[327323775,1715987433412,-500.0,0.00012328,2]
[327323776,1715987433423,-500.0,0.00012328,2]
[327323777,1715987433432,-500.0,0.00012328,2]
[327323778,1715987433442,-500.0,0.00012328,2]
[327323779,1715987433452,-522.68434321,0.00012328,2]
[327323780,1715987433462,-500.0,0.00012328,2]
[327323781,1715987433472,-437.068277,0.00012328,2]
[327323782,1715987433482,-500.0,0.00012328,2]
[327323783,1715987433492,-480.02047089,0.00012328,2]
[327323784,1715987433502,-500.0,0.00012328,2]
[327323785,1715987433512,-500.0,0.00012328,2]
[327323786,1715987433522,-480.0,0.00012328,2]
[327323787,1715987433531,-500.0,0.00012328,2]
[327323788,1715987433540,-500.0,0.00012328,2]
[327323789,1715987433550,-500.0,0.00012328,2]
[327323790,1715987433560,-500.0,0.00012328,2]
[327323791,1715987433569,-500.0,0.00012328,2]
[327323792,1715987433579,-500.0,0.00012328,2]
[327323793,1715987433588,-500.0,0.00012328,2]
[327323794,1715987433602,-500.0,0.00012328,2]
[327323795,1715987433611,-500.0,0.00012328,2]
[327323796,1715987433620,-500.0,0.00012328,2]
[327323797,1715987433629,-500.0,0.00012328,2]
[327323798,1715987433639,-500.0,0.00012328,2]
[327323799,1715987433649,-500.0,0.00012328,2]
[327323800,1715987433659,-247.69807383,0.00012328,2]
[327323801,1715987433668,-500.0,0.00012328,2]
[327323802,1715987433680,-500.0,0.00012328,2]
[327323803,1715987433689,-500.0,0.00012328,2]
[327323804,1715987433698,-500.0,0.00012328,2]
[327323805,1715987433707,-500.0,0.00012328,2]
[327323806,1715987433717,-365.1,0.00012328,2]
[327323807,1715987433726,-500.0,0.00012328,2]
[327323808,1715987433737,-297.87,0.00012328,2]
[327323809,1715987433746,-500.0,0.00012328,2]
[327323810,1715987433755,-500.0,0.00012328,2]
[327323811,1715987433766,-616.38,0.00012328,2]
[327323812,1715987433775,-500.0,0.00012328,2]
[327323813,1715987433784,-500.0,0.00012328,2]
[327323814,1715987433794,-500.0,0.00012328,2]
[327323815,1715987433803,-509.41438883,0.00012328,2]
[327323816,1715987433812,-500.0,0.00012328,2]
[327323817,1715987433823,-500.0,0.00012328,2]
[327323818,1715987433832,-240.75900108,0.00012328,2]
[327323819,1715987433842,-513.24669713,0.00012328,2]
[327323820,1715987433851,-500.0,0.00012328,2]
[327323821,1715987433860,-500.0,0.00012328,2]
[327323822,1715987433870,-500.0,0.00012328,2]
[327323823,1715987433879,-500.0,0.00012328,2]
[327323824,1715987433889,-500.0,0.00012328,2]
[327323825,1715987433898,-249.34,0.00012328,2]
[327323826,1715987433907,-500.0,0.00012328,2]
[327323827,1715987433917,-500.0,0.00012328,2]
[327323828,1715987433927,-426.03,0.00012328,2]
[327323829,1715987433936,-500.0,0.00012328,2]
[327323830,1715987433946,-500.0,0.00012328,2]
[327323831,1715987433956,-500.0,0.00012328,2]
[327323832,1715987433965,-624.79,0.00012328,2]
[327323833,1715987433975,-500.0,0.00012328,2]
[327323834,1715987433984,-500.0,0.00012328,2]
[327323835,1715987433994,-500.0,0.00012328,2]
[327323836,1715987434003,-500.0,0.00012328,2]
[327323837,1715987434012,-500.0,0.00012328,2]
[327323838,1715987434022,-500.0,0.00012328,2]
[327323839,1715987434031,-500.0,0.00012328,2]
[327323840,1715987434041,-500.0,0.00012328,2]
[327323841,1715987434050,-500.0,0.00012328,2]
[327323842,1715987434060,-500.0,0.00012328,2]
[327323843,1715987434070,-500.0,0.00012328,2]
[327323844,1715987434079,-500.0,0.00012328,2]
[327323845,1715987434087,-500.0,0.00012328,2]
[327323846,1715987434097,-500.0,0.00012328,2]
[327323847,1715987434107,-500.0,0.00012328,2]
[327323848,1715987434116,-511.373483,0.00012328,2]
[327323849,1715987434125,-500.0,0.00012328,2]
[327323850,1715987434135,-515.35561874,0.00012328,2]
[327323851,1715987434145,-500.0,0.00012328,2]
[327323852,1715987434154,-500.0,0.00012328,2]
[327323853,1715987434164,-500.0,0.00012328,2]
[327323854,1715987434174,-500.0,0.00012328,2]
[327323855,1715987434184,-500.0,0.00012328,2]
[327323856,1715987434193,-500.0,0.00012328,2]
[327323857,1715987434203,-500.0,0.00012328,2]
[327323858,1715987434213,-500.0,0.00012328,2]
[327323859,1715987434223,-500.0,0.00012328,2]
[327323860,1715987434232,-500.0,0.00012328,2]
[327323861,1715987434241,-278.19,0.00012328,2]
[327323862,1715987434251,-500.0,0.00012328,2]
[327323863,1715987434260,-500.0,0.00012328,2]
[327323864,1715987434270,-500.0,0.00012328,2]
[327323865,1715987434280,-500.0,0.00012328,2]
[327323866,1715987434289,-500.0,0.00012328,2]
[327323867,1715987434299,-500.0,0.00012328,2]
[327323868,1715987434308,-500.0,0.00012328,2]
[327323869,1715987434318,-500.0,0.00012328,2]
[327323870,1715987434328,-500.0,0.00012328,2]
[327323871,1715987434337,-500.0,0.00012328,2]
[327323872,1715987434347,-500.0,0.00012328,2]
[327323873,1715987434357,-500.0,0.00012328,2]
[327323874,1715987434367,-500.0,0.00012328,2]
[327323875,1715987434377,-500.0,0.00012328,2]
[327323876,1715987434387,-544.31042674,0.00012328,2]
[327323877,1715987434397,-203.63874828,0.00012328,2]
[327323878,1715987434407,-500.0,0.00012328,2]
[327323879,1715987434416,-500.0,0.00012328,2]
[327323880,1715987434427,-500.0,0.00012328,2]
[327323881,1715987434436,-500.0,0.00012328,2]
[327323882,1715987434446,-557.99,0.00012328,2]
[327323883,1715987434455,-500.0,0.00012328,2]
[327323884,1715987434464,-500.0,0.00012328,2]
[327323885,1715987434474,-500.0,0.00012328,2]
[327323886,1715987434483,-500.0,0.00012328,2]
[327323887,1715987434493,-500.0,0.00012328,2]
[327323888,1715987434502,-500.0,0.00012328,2]
[327323889,1715987434511,-500.0,0.00012328,2]
[327323890,1715987434522,-500.0,0.00012328,2]
[327323891,1715987434532,-505.39,0.00012328,2]
[327323892,1715987434543,-500.0,0.00012328,2]
[327323893,1715987434554,-500.0,0.00012328,2]
[327323894,1715987434564,-500.0,0.00012328,2]
[327323895,1715987434573,-500.0,0.00012328,2]
[327323896,1715987434583,-500.0,0.00012328,2]
[327323897,1715987434593,-500.0,0.00012328,2]
[327323898,1715987434607,-500.0,0.00012328,2]
[327323899,1715987434616,-500.0,0.00012328,2]
[327323900,1715987434626,-500.0,0.00012328,2]
[327323901,1715987434637,-500.0,0.00012328,2]
[327323902,1715987434646,-500.0,0.00012328,2]
[327323903,1715987434655,-500.0,0.00012328,2]
[327323904,1715987434664,-500.0,0.00012328,2]
[327323905,1715987434677,-512.70167798,0.00012328,2]
[327323906,1715987434687,-500.0,0.00012328,2]
[327323907,1715987434696,-500.0,0.00012328,2]
[327323908,1715987434705,-500.0,0.00012328,2]
[327323909,1715987434714,-500.0,0.00012328,2]
[327323910,1715987434732,-500.0,0.00012328,2]
[327323911,1715987434744,-500.0,0.00012328,2]
[327323912,1715987434755,-208.53142253,0.00012328,2]
[327323913,1715987434766,-582.26,0.00012328,2]
[327323914,1715987434775,-541.14,0.00012328,2]
[327323915,1715987434784,-500.0,0.00012328,2]
[327323916,1715987434794,-500.0,0.00012328,2]
[327323917,1715987434805,-500.0,0.00012328,2]
[327323918,1715987434814,-500.0,0.00012328,2]
[327323919,1715987434824,-500.0,0.00012328,2]
[327323920,1715987434835,-160.32,0.00012328,2]
[327323921,1715987434845,-500.0,0.00012328,2]
[327323922,1715987434857,-500.0,0.00012328,2]
[327323923,1715987434869,-500.0,0.00012328,2]
[327323924,1715987434879,-256.06,0.00012328,2]
[327323925,1715987434890,-500.0,0.00012328,2]
[327323926,1715987434901,-500.0,0.00012328,2]
[327323927,1715987434911,-500.0,0.00012328,2]
[327323928,1715987434922,-500.0,0.00012328,2]
[327323929,1715987434931,-500.0,0.00012328,2]
[327323930,1715987434940,-459.35,0.00012328,2]
[327323931,1715987434950,-500.0,0.00012328,2]
[327323932,1715987434959,-500.0,0.00012328,2]
[327323933,1715987434968,-500.0,0.00012328,2]
[327323934,1715987434978,-500.0,0.00012328,2]
[327323935,1715987434989,-500.0,0.00012328,2]
[327323936,1715987434999,-509.0611846,0.00012328,2]
[327323937,1715987435008,-500.0,0.00012328,2]
[327323938,1715987435019,-291.65,0.00012328,2]
[327323939,1715987435028,-500.0,0.00012328,2]
[327323940,1715987435039,-500.0,0.00012328,2]
[327323941,1715987435048,-500.0,0.00012328,2]
[327323942,1715987435060,-500.0,0.00012328,2]
[327323943,1715987435070,-500.0,0.00012328,2]
[327323944,1715987435080,-500.0,0.00012328,2]
[327323945,1715987435090,-500.0,0.00012328,2]
[327323946,1715987435100,-500.0,0.00012328,2]
[327323947,1715987435110,-500.0,0.00012328,2]
[327323948,1715987435120,-500.0,0.00012328,2]
[327323949,1715987435130,-500.0,0.00012328,2]
[327323950,1715987435139,-513.41203501,0.00012328,2]
[327323951,1715987435148,-500.0,0.00012328,2]
[327323952,1715987435159,-500.0,0.00012328,2]
[327323953,1715987435168,-500.0,0.00012328,2]
[327323954,1715987435178,-500.0,0.00012328,2]
[327323955,1715987435188,-500.0,0.00012328,2]
[327323956,1715987435198,-500.0,0.00012328,2]
[327323957,1715987435207,-500.0,0.00012328,2]
[327323958,1715987435217,-500.0,0.00012328,2]
[327323959,1715987435227,-500.0,0.00012328,2]
[327323960,1715987435236,-500.0,0.00012328,2]
[327323961,1715987435246,-500.0,0.00012328,2]
[327323962,1715987435256,-500.0,0.00012328,2]
[327323963,1715987435265,-500.0,0.00012328,2]
[327323964,1715987435275,-500.0,0.00012328,2]
[327323965,1715987435284,-500.0,0.00012328,2]
[327323966,1715987435294,-500.0,0.00012328,2]
[327323967,1715987435304,-500.0,0.00012328,2]
[327323968,1715987435314,-500.0,0.00012328,2]
[327323969,1715987435323,-500.0,0.00012328,2]
[327323970,1715987435332,-500.0,0.00012328,2]
[327323971,1715987435342,-510.26990796,0.00012328,2]
[327323972,1715987435351,-500.0,0.00012328,2]
[327323973,1715987435361,-505.20693292,0.00012328,2]
[327323974,1715987435371,-500.0,0.00012328,2]
[327323975,1715987435380,-500.0,0.00012328,2]
[327323976,1715987435390,-500.0,0.00012328,2]
[327323977,1715987435400,-500.0,0.00012328,2]
[327323978,1715987435410,-150.0,0.00012328,2]
[327323979,1715987435420,-500.0,0.00012328,2]
[327323980,1715987435430,-500.0,0.00012328,2]
[327323981,1715987435440,-500.0,0.00012328,2]
[327323982,1715987435450,-500.0,0.00012328,2]
[327323983,1715987435459,-500.0,0.00012328,2]
[327323984,1715987435469,-500.0,0.00012328,2]
[327323985,1715987435481,-500.0,0.00012328,2]
[327323986,1715987435491,-576.4057594,0.00012328,2]
[327323987,1715987435500,-500.0,0.00012328,2]
[327323988,1715987435509,-500.0,0.00012328,2]
[327323989,1715987435519,-500.0,0.00012328,2]
[327323990,1715987435528,-275.7413312,0.00012328,2]
[327323991,1715987435721,-500.0,0.00012328,2]
[327323992,1715987435732,-500.0,0.00012328,2]
[327323993,1715987435742,-500.0,0.00012328,2]
[327323994,1715987435753,-546.18997902,0.00012328,2]
[327323995,1715987435762,-540.47572595,0.00012328,2]
[327323996,1715987435772,-500.0,0.00012328,2]
[327323997,1715987435782,-500.0,0.00012328,2]
[327323998,1715987435791,-500.0,0.00012328,2]
[327323999,1715987435801,-500.0,0.00012328,2]
[327324000,1715987435810,-369.86765503,0.00012328,2]
[327324001,1715987435819,-596.00541495,0.00012328,2]
[327324002,1715987435829,-500.0,0.00012328,2]
[327324003,1715987435839,-500.0,0.00012328,2]
[327324004,1715987435848,-500.0,0.00012328,2]
[327324005,1715987435858,-500.0,0.00012328,2]
[327324006,1715987435867,-500.0,0.00012328,2]
[327324007,1715987435877,-500.0,0.00012328,2]
[327324008,1715987435886,-500.0,0.00012328,2]
[327324009,1715987435896,-501.04952257,0.00012328,2]
[327324010,1715987435906,-500.0,0.00012328,2]
[327324011,1715987435915,-519.5,0.00012328,2]
[327324012,1715987435925,-500.0,0.00012328,2]
[327324013,1715987435935,-210.6,0.00012328,2]
[327324014,1715987435944,-500.0,0.00012328,2]
[327324015,1715987435953,-500.0,0.00012328,2]
[327324016,1715987435963,-500.0,0.00012328,2]
[327324017,1715987435972,-500.0,0.00012328,2]
[327324018,1715987435982,-500.0,0.00012328,2]
[327324019,1715987435991,-262.36,0.00012328,2]
[327324020,1715987436001,-500.0,0.00012328,2]
[327324021,1715987436010,-500.0,0.00012328,2]
[327324022,1715987436020,-500.0,0.00012328,2]